[Event "45th FIDE Olympiad 2024"]
[Site "Budapest"]
[Date "2024.09.14"]
[Round "4.9"]
[White "Predke, Alexandr"]
[Black "Gukesh, D."]
[Result "0-1"]
[ECO "B13"]
[WhiteElo "2671"]
[BlackElo "2764"]
[Annotator "TA"]
[PlyCount "170"]
[EventDate "2024.09.05"]
[EventType "team-tourn"]
[EventCountry "HUN"]
[SourceTitle "playchess.com"]
[Source "ChessBase"]
[SourceQuality "1"]
[WhiteTeam "Serbia"]
[BlackTeam "India"]
[WhiteTeamCountry "SRB"]
[BlackTeamCountry "IND"]
[TimeControl "40/5400+30:1800+30"]

{[%evp 13,170,29,13,0,13,8,4,-16,-16,-19,-28,-39,-28,-23,0,-28,0,0,0,0,0,0,26,0,0,-5,-13,-16,0,0,0,0,-4,-13,0,-22,-14,-15,-14,-9,-24,-41,-48,-46,-37,-44,-37,-66,-70,-72,-73,-88,-47,-60,-52,-55,-51,-133,-133,-130,-114,-129,-90,-91,-81,-100,-62,-71,-68,-84,-86,-92,-75,-94,-100,-109,-95,-131,-110,-110,-110,-144,-97,-126,-111,-125,-125,-125,-125,-125,-125,-137,-137,-144,-144,-144,-104,-109,-78,-104,-96,-142,-142,-192,-124,-252,-218,-210,-210,-216,-162,-268,-268,-252,-34,-21,-49,-350,-138,-135,-123,-133,-100,-114,-114,-132,-111,-123,-117,-174,-108,-339,-167,-223,0,-195,-82,-84,-98,-207,-212,-340,-329,-369,-347,-561,-555,-575,-578,-814,-839,-843,-836,-819,-798,-865,-808,-1233,-1219]} 1. e4 {[%emt 0:00:50]} c6 {[%emt 0:00:07]} 2. d4 {[%emt 0:08:37]} d5 {[%emt 0:00:07]} 3. exd5 {[%emt 0:00:03]} cxd5 {[%emt 0:00:06]} 4. Bd3 {[%emt 0:00:06]} Nc6 {[%emt 0:02:28]} 5. c3 {[%emt 0:00:30]} Qc7 {[%emt 0:00:07]} 6. h3 {[%emt 0:00:34]} Nf6 {[%emt 0:00:09]} 7. Nf3 {[%emt 0:09:23]} g6 {[%emt 0:00:08]} 8. Na3 {[%emt 0:01:42]} a6 {[%emt 0:05:22]} 9. Nc2 {[%emt 0:00:23]} Bf5 {[%emt 0:03:44]} 10. Bxf5 {[%emt 0:02:34] The position is equal.} gxf5 {[%emt 0:00:08]} 11. O-O {[%emt 0:01:58]} e6 {[%emt 0:01:25]} 12. Nce1 {[%emt 0:01:02]} Bd6 {[%emt 0:02:40]} 13. Nd3 {[%emt 0:01:22][%cal Of3e5]} Ne4 {[%emt 0:06:41]} 14. Bh6 {[%emt 0:01:32]} Rg8 {[%emt 0:14:11]} 15. Qc1 {[%emt 0:00:45]} O-O-O {[%emt 0:05:51]} 16. Bf4 {[%emt 0:02:42]} f6 {[%emt 0:03:29]} 17. Bxd6 {[%emt 0:03:15]} Rxd6 {[%emt 0:02:46]} 18. Qf4 {[%emt 0:10:20]} Ne7 {[%emt 0:02:42]} 19. Rac1 {[%emt 0:07:57]} Ng6 {[%emt 0:00:53] Wards off Nh4} 20. Qh2 {[%emt 0:00:25]} Rc6 {[%emt 0:04:04]} 21. Qxc7+ {[%emt 0:14:33]} Kxc7 {[%emt 0:00:39]} 22. Rfe1 {[%emt 0:00:55]} Kd6 {[%emt 0:01:46]} 23. Kf1 {[%emt 0:01:20]} a5 {[%emt 0:12:01]} 24. g4 {[%emt 0:12:28]} fxg4 {[%emt 0:11:44]} 25. hxg4 {[%emt 0:00:06]} a4 {[%emt 0:00:26][%cal Oa4a3]} 26. a3 $1 {[%emt 0:01:45]} Ne7 {[%emt 0:03:01]} 27. g5 {[%emt 0:01:43]} fxg5 {[%emt 0:01:13]} (27... Nxg5 28. Nxg5 Rxg5 29. Nc5 $11) 28. Nfe5 {[%emt 0:01:00] Repels Ng6} Rcc8 $1 {[%emt 0:00:28]} 29. f3 {[%emt 0:04:09]} Nd2+ {[%emt 0:00:34]} 30. Kg2 {[%emt 0:02:53]} Nf5 $36 {[%emt 0:02:38][%mdl 2048] Black fights for an advantage.} 31. Rc2 {[%emt 0:01:40]} Nb3 {[%emt 0:02:02]} 32. Rce2 {[%emt 0:00:05]} Rc7 {[%emt 0:03:13] Active counter play!} 33. Ng4 {[%emt 0:01:57]} Re7 {[%emt 0:00:38]} 34. Rh1 {[%emt 0:03:02]} Nh4+ {[%emt 0:00:05]} 35. Kg3 {[%emt 0:00:02]} (35. Kf2 $15) 35... h5 $17 {[%emt 0:01:22] Some like it hot} 36. Nge5 {[%emt 0:00:38]} Nf5+ {[%emt 0:01:44]} 37. Kf2 {[%emt 0:00:38]} Rh7 {[%emt 0:02:12]} 38. Rg1 {[%emt 0:00:38]} Rgg7 {[%emt 0:01:02]} 39. Ke1 {[%emt 0:00:33]} Ke7 {[%emt 0:01:42]} 40. Reg2 {[%emt 0:00:44]} Kf6 {[%emt 0:00:05]} 41. Ke2 {[%emt 0:31:57]} b6 {[%emt 0:13:47]} 42. Nc6 {[%emt 0:00:00]} Nd6 {[%emt 0:01:59]} 43. Nce5 {[%emt 0:00:00]} Na5 {[%emt 0:00:35]} 44. Rh2 {[%emt 0:00:00]} Nac4 {[%emt 0:01:16]} 45. Rgh1 {[%emt 0:00:00]} h4 {[%emt 0:02:53]} 46. Kf2 {[%emt 0:00:00]} Ke7 {[%emt 0:02:35]} 47. Rg2 {[%emt 0:00:00]} Nxe5 {[%emt 0:05:30]} (47... Nf5 $142 48. Nxc4 dxc4) 48. Nxe5 {[%emt 0:00:00]} Nf5 {[%emt 0:00:28]} 49. Re1 {[%emt 0:00:00]} Rh8 {[%emt 0:01:16]} 50. Kg1 {[%emt 0:00:00]} Rf8 {[%emt 0:03:04]} 51. Rge2 {[%emt 0:00:00]} Kd6 {[%emt 0:00:30] Wards off Nc6} 52. Kg2 {[%emt 0:00:00]} Ng3 {[%emt 0:01:30]} 53. Re3 {[%emt 0:00:00]} Nh5 {[%emt 0:00:04]} 54. Kh2 {[%emt 0:00:00]} Kc7 {[%emt 0:02:47]} 55. Rb1 {[%emt 0:02:05]} Nf6 {[%emt 0:00:44]} 56. Kh3 {[%emt 0:00:42]} Ne8 {[%emt 0:00:11]} 57. Rg1 {[%emt 0:01:13]} (57. b3 $142) 57... Nd6 {[%emt 0:00:09]} 58. Rg4 {[%emt 0:00:05]} (58. Rg2 $17) 58... b5 {[%emt 0:02:58]} (58... Nf7 $19 59. c4 Nh6 (59... Nxe5 60. dxe5 Rgf7 61. cxd5 $17)) 59. Re2 {[%emt 0:02:16]} (59. Rg2 $17) 59... Nc4 $1 $19 {[%emt 0:01:19] ...Nxe5 would now be deadly.} 60. Kg2 {[%emt 0:00:24]} Kd6 {[%emt 0:00:30]} 61. Nd3 {[%emt 0:01:25]} Rgf7 {[%emt 0:00:26]} 62. f4 {[%emt 0:00:54]} (62. Nc5 $142) 62... gxf4 {[%emt 0:00:11]} 63. Kf3 {[%emt 0:00:01]} Rf6 $2 {[%emt 0:01:00]} ({Better is} 63... Rh8 $1 $19 64. Rxf4 Rg7) 64. Rxh4 $15 {[%emt 0:00:38]} Rg8 {[%emt 0:00:05]} 65. Nxf4 $2 {[%emt 0:00:39][%mdl 8192]} (65. Rxf4 $15 Rfg6 66. Kf2) 65... Rg1 $2 {[%emt 0:00:47]} (65... e5 $19 66. dxe5+ Nxe5+ 67. Rxe5 Kxe5 68. Rh5+ Rf5 (68... Kd6 $2 69. Rxd5+ Kc6 70. Re5 $17) 69. Rxf5+ Kxf5) 66. Rg4 $17 {[%emt 0:03:16]} Rf1+ {[%emt 0:00:26]} 67. Kg3 {[%emt 0:00:18]} e5 $1 {[%emt 0:00:42]} 68. dxe5+ Nxe5 {[%emt 0:00:01]} 69. Rg5 {[%emt 0:00:57]} Rg1+ {[%emt 0:00:26]} 70. Ng2 {[%emt 0:00:43]} Nc4 {[%emt 0:00:35]} 71. Rh5 {[%emt 0:00:54]} (71. Rg8 $17) 71... Kc6 {[%emt 0:00:33]} ({Black should try} 71... Kc5 $1 $19 72. Rg5 Rh6) 72. Rh2 $2 {[%emt 0:00:41]} (72. Rf2 $17 Rxf2 73. Kxf2) 72... Kc5 {[%emt 0:00:37]} (72... Nd6 $142 {And now ...Ne4+ would win.} 73. Rh8 Ne4+ 74. Kh2 Rgf1) 73. Rh5 {[%emt 0:00:13]} (73. Rh4 $142) 73... Kc6 $2 {[%emt 0:00:38]} ({Black should play} 73... Rgf1 $19 {...Nd6 is the strong threat.} 74. Rg5 R1f3+ 75. Kg4 Kd6) 74. Rh8 $2 {[%emt 0:00:42]} (74. Rh2 $1 $11 {and White is okay.}) 74... Rb1 {[%emt 0:00:40]} (74... Nd6 $1 $19 {[%cal Rd6e4] Strongly threatening ...Ne4+.} 75. Rd8 Rgf1) 75. Nf4 {[%emt 0:00:34]} Rxb2 {[%emt 0:00:32]} 76. Rc8+ {[%emt 0:00:20] [#]} (76. Rxb2 $17 {is the only way for White.} Nxb2 77. Ra8) 76... Kb7 $1 $19 {[%emt 0:00:26]} 77. Ree8 {[%emt 0:00:17] [#]} (77. Rxb2 {was necessary.} Nxb2 (77... Kxc8 78. Rxb5 Nxa3 79. Rb4 $11) 78. Rh8) 77... Nd6 $1 {[%emt 0:00:18]} (77... Nxa3 78. Rb8+ Kc6 79. Rbc8+ Kb7 80. Rb8+ Kc6 81. Rec8+ Kd6 82. Rg8 $11 (82. Rd8+ Kc6 $14)) 78. Rb8+ {[%emt 0:00:32]} Kc6 {[%emt 0:00:01]} 79. Red8 $2 {[%emt 0:00:35]} (79. Nd3 {was worth a try.} Nxe8 80. Nxb2) 79... Ra2 {[%emt 0:00:53] Black is clearly winning.} 80. Ra8 {[%emt 0:00:47]} Rxa3 {[%emt 0:00:40]} 81. Ne2 {[%emt 0:00:03]} Kc5 {[%emt 0:00:33][%cal Od5d4]} 82. Rd7 {[%emt 0:00:28]} Ne4+ {[%emt 0:00:19]} 83. Kg4 {[%emt 0:00:04]} Rc6 {[%emt 0:00:45] White must now prevent ...Nf6+.} 84. Kf4 {[%emt 0:00:25]} Nxc3 {[%emt 0:00:05]} 85. Nc1 {[%emt 0:00:13]} Kc4 {[%emt 0:00:28] Weighted Error Value: White=0.14 (very precise) /Black=0.09 (flawless) .  Loses game:     	White=3     	---        Missed win:     	---       	Black=3      Mistake:       	White=10    	Black=5      Inaccurate:     	White=6     	Black=6      OK:         	White=18    	Black=32     Best:        	White=8     	Black=6      Strong:       	White=1     	Black=5} 0-1

[Event "45th FIDE Olympiad 2024"]
[Site "Budapest"]
[Date "2024.09.14"]
[Round "4.9"]
[White "Gontcharov, Serguei"]
[Black "Ferster, Fabian"]
[Result "0-1"]
[ECO "B33"]
[WhiteElo "1927"]
[BlackElo "2184"]
[PlyCount "102"]
[EventDate "2024.09.05"]
[EventType "team-tourn"]
[EventCountry "HUN"]
[WhiteTeam "Bermuda"]
[BlackTeam "Liechtenstein"]
[WhiteTeamCountry "BER"]
[BlackTeamCountry "LIE"]
[TimeControl "40/5400+30:1800+30"]

1. e4 c5 2. Nf3 Nc6 3. d4 cxd4 4. Nxd4 Nf6 5. Nc3 e5 6. Ndb5 d6 7. Bg5 a6 8. Na3 b5 9. Nd5 Be7 10. Bxf6 Bxf6 11. c3 Ne7 12. Nc2 Nxd5 13. Qxd5 Be6 14. Qd1 d5 15. a4 O-O 16. Bd3 bxa4 17. O-O dxe4 18. Bxe4 Qxd1 19. Rfxd1 Rab8 20. Rxa4 Rxb2 21. Na1 Rd8 22. Rxd8+ Bxd8 23. Rxa6 Re2 24. f3 Kf8 25. Nc2 Bc4 26. Rc6 Bb5 27. Rc8 Ke7 28. Rb8 Bc4 29. Nb4 Bc7 30. Rb7 Kd6 31. h4 g6 32. Bd3 Bxd3 33. Nxd3 Re3 34. Nf2 Re1+ 35. Kh2 Kc6 36. Rb3 e4+ 37. Kh3 e3 38. Nd3 Rh1+ 39. Kg4 f6 40. f4 e2 41. Nb4+ Kd7 42. Nd3 Rd1 43. Kf3 Rxd3+ 44. Kxe2 Rg3 45. Kf2 Bxf4 46. Rb7+ Ke6 47. Rxh7 Rxc3 48. h5 g5 49. h6 g4 50. Rg7 g3+ 51. Ke2 Bxh6 {0-} 0-1

[Event "45th FIDE Olympiad 2024"]
[Site "Budapest"]
[Date "2024.09.14"]
[Round "4.10"]
[White "Praggnanandhaa, R."]
[Black "Sarana, Alexey"]
[Result "1/2-1/2"]
[ECO "B94"]
[WhiteElo "2750"]
[BlackElo "2713"]
[Annotator "TA"]
[PlyCount "45"]
[EventDate "2024.09.05"]
[EventType "team-tourn"]
[EventCountry "HUN"]
[SourceTitle "playchess.com"]
[Source "ChessBase"]
[SourceQuality "1"]
[WhiteTeam "India"]
[BlackTeam "Serbia"]
[WhiteTeamCountry "IND"]
[BlackTeamCountry "SRB"]
[TimeControl "40/5400+30:1800+30"]

{[%evp 12,45,12,15,5,0,17,0,25,0,0,0,0,0,12,0,0,0,0,0,1,0,8,0,2,-1,0,0,0,0,0,0,0,0,0,0]} 1. e4 {[%emt 0:00:49]} c5 {[%emt 0:00:02]} 2. Nf3 {[%emt 0:00:10]} d6 {[%emt 0:00:04]} 3. d4 {[%emt 0:00:06]} cxd4 {[%emt 0:00:04]} 4. Nxd4 {[%emt 0:00:05]} Nf6 {[%emt 0:00:06]} 5. Nc3 {[%emt 0:00:04]} a6 {[%emt 0:00:06]} 6. Bg5 {[%emt 0:00:36]} Nbd7 {[%emt 0:00:39]} 7. a4 {[%emt 0:00:44]} e6 {[%emt 0:06:25]} 8. Qf3 {[%emt 0:01:27]} Qc7 {[%emt 0:04:24]} 9. Be2 {[%emt 0:00:48]} b6 {[%emt 0:04:04]} 10. O-O {[%emt 0:01:20][%cal Oa4a5]} Bb7 {[%emt 0:00:10] The position is equal.} 11. Qg3 {[%emt 0:01:18]} Be7 {[%emt 0:04:04]} 12. Rad1 {[%emt 0:01:01]} Nc5 {[%emt 0:05:10]} 13. f3 {[%emt 0:22:47]} O-O {[%emt 0:02:17]} 14. Bh6 {[%emt 0:01:52][%csl Gh6][%cal Rg3g7] [#]} Ne8 {[%emt 0:00:54]} 15. Be3 {[%emt 0:03:05]} Nf6 {[%emt 0:01:34]} 16. Nb3 {[%emt 0:05:19][%cal Bd4b3,Bb3d2,Bd2c4][%mdl 32]} Ncd7 {[%emt 0:02:35]} 17. Nd2 {[%emt 0:06:14]} Rfd8 {[%emt 0:11:49]} 18. Nc4 {[%emt 0:03:47][%cal Od1d2]} Nc5 {[%emt 0:00:25]} 19. Rd2 {[%emt 0:03:42]} Nh5 {[%emt 0:02:05]} 20. Qh3 {[%emt 0:04:26]} Nf6 {[%emt 0:01:07]} 21. Qg3 {[%emt 0:01:13]} Nh5 {[%emt 0:00:02]} 22. Qh3 {[%emt 0:01:33]} Nf6 {[%emt 0:00:19]} 23. Qg3 {[%emt 0:10:20] A rather calm draw.   Weighted Error Value: White=0.04 (flawless) /Black=0.03 (flawless) .  OK:         	White=3     	Black=8} 1/2-1/2

[Event "45th FIDE Olympiad 2024"]
[Site "Budapest"]
[Date "2024.09.14"]
[Round "4.10"]
[White "Krieger, Markus"]
[Black "Lill, Sami"]
[Result "1-0"]
[ECO "C55"]
[WhiteElo "2153"]
[BlackElo "1902"]
[PlyCount "59"]
[EventDate "2024.09.05"]
[EventType "team-tourn"]
[EventCountry "HUN"]
[WhiteTeam "Liechtenstein"]
[BlackTeam "Bermuda"]
[WhiteTeamCountry "LIE"]
[BlackTeamCountry "BER"]
[TimeControl "40/5400+30:1800+30"]

1. e4 e5 2. Nf3 Nc6 3. Bc4 Nf6 4. d3 Be7 5. O-O O-O 6. Nbd2 d6 7. a4 Be6 8. Re1 a5 9. c3 Re8 10. Bb5 Bd7 11. Nf1 Qc8 12. Ng3 Na7 13. Bxd7 Qxd7 14. Nf5 Bf8 15. Bg5 Nd5 16. Nxg7 Bxg7 17. exd5 b5 18. axb5 Qxb5 19. c4 Qxb2 20. Rxa5 c6 21. Qa4 Qb6 22. Be3 c5 23. Nd2 Reb8 24. g3 e4 25. Ra6 Qb7 26. Nxe4 Nc8 27. Qe8+ Bf8 28. Nf6+ Kg7 29. Nh5+ Kg8 30. Qxf8+ 1-0

[Event "45th FIDE Olympiad 2024"]
[Site "Budapest"]
[Date "2024.09.14"]
[Round "4.11"]
[White "Indjic, Aleksandar"]
[Black "Erigaisi, Arjun"]
[Result "0-1"]
[ECO "D02"]
[WhiteElo "2611"]
[BlackElo "2778"]
[Annotator "TA"]
[PlyCount "80"]
[EventDate "2024.09.05"]
[EventType "team-tourn"]
[EventCountry "HUN"]
[SourceTitle "playchess.com"]
[Source "ChessBase"]
[SourceQuality "1"]
[WhiteTeam "Serbia"]
[BlackTeam "India"]
[WhiteTeamCountry "SRB"]
[BlackTeamCountry "IND"]
[TimeControl "40/5400+30:1800+30"]

{[%evp 9,80,20,17,25,18,23,16,22,74,72,71,34,46,34,56,11,33,-5,-1,-2,0,-10,-12,-10,-11,-12,-10,-47,-48,-44,-47,-49,-49,-68,-74,-66,-70,-72,-73,-68,-64,-66,-62,-73,-69,-74,-74,-75,-75,-80,-81,-87,-90,-102,-87,-120,-105,-170,-178,-185,-188,-188,-187,-183,-184,-281,-278,-818,-818,-872,-799,-943,-923]} 1. Nf3 {[%emt 0:00:41]} d5 {[%emt 0:00:12]} 2. g3 {[%emt 0:00:50]} Nc6 {[%emt 0:00:07]} 3. d4 {[%emt 0:00:50]} Bf5 {[%emt 0:00:06]} 4. Bg2 {[%emt 0:01:20]} Nb4 {[%emt 0:00:46]} 5. Na3 {[%emt 0:00:10]} e6 {[%emt 0:00:06]} 6. c3 {[%emt 0:00:54]} Nc6 {[%emt 0:00:16]} 7. Qb3 {[%emt 0:00:09]} Rb8 {[%emt 0:01:02]} 8. Nh4 {[%emt 0:00:21] The position is equal.} Be4 {[%emt 0:04:17]} (8... Bg4 $11) 9. f3 $16 {[%emt 0:04:05]} Bg6 {[%emt 0:00:07]} 10. Nxg6 {[%emt 0:00:34]} hxg6 {[%emt 0:00:07]} 11. e4 {[%emt 0:00:10]} Nf6 {[%emt 0:03:04][%cal Ob7b5]} 12. Bg5 {[%emt 0:12:43] Threatens to win with e5.} Be7 {[%emt 0:02:00]} 13. Bxf6 {[%emt 0:00:26]} gxf6 {[%emt 0:06:56]} 14. exd5 {[%emt 0:05:48]} exd5 {[%emt 0:00:31]} 15. Nc2 {[%emt 0:00:17]} Na5 $36 {[%emt 0:01:48][%mdl 2048] Black has some pressure.} 16. Qb5+ {[%emt 0:00:23]} c6 {[%emt 0:00:05]} 17. Qe2 {[%emt 0:00:15]} Nc4 {[%emt 0:11:11]} 18. b3 {[%emt 0:00:26]} Nd6 {[%emt 0:00:23]} 19. O-O {[%emt 0:00:08]} Kf8 {[%emt 0:08:59]} 20. Ne1 {[%emt 0:02:06]} Qa5 {[%emt 0:03:22]} 21. Rc1 {[%emt 0:00:14]} Nf5 {[%emt 0:12:42]} 22. b4 {[%emt 0:01:14]} Qc7 {[%emt 0:01:56][%cal Oh8h2] White must now prevent ...Rxh2!} 23. f4 {[%emt 0:00:11]} a5 {[%emt 0:00:46]} 24. a3 {[%emt 0:00:06]} Re8 {[%emt 0:02:36][%cal Oe7b4,Bb8e8,Be8a8,Ba8a2][%mdl 32] aiming for ...Bxb4!} 25. Qd2 {[%emt 0:00:28]} Nd6 {[%emt 0:00:34]} 26. Nc2 {[%emt 0:00:07]} f5 {[%emt 0:03:46]} 27. Rfe1 {[%emt 0:00:32]} Kg7 {[%emt 0:02:22]} 28. Re2 {[%emt 0:00:09]} Ra8 {[%emt 0:01:06]} 29. Ree1 {[%emt 0:07:10]} Bf6 {[%emt 0:05:26]} 30. Re2 {[%emt 0:01:59]} axb4 {[%emt 0:05:28]} 31. axb4 {[%emt 0:00:07]} Ra2 {[%emt 0:00:06]} 32. Ree1 {[%emt 0:00:28]} Rha8 {[%emt 0:00:49] Black has more active pieces.} 33. Ra1 {[%emt 0:01:32]} (33. Qd1 $17) 33... Qb6 $19 {[%emt 0:01:53]} 34. Reb1 {[%emt 0:19:20]} R8a4 {[%emt 0:04:32]} 35. Qc1 {[%emt 0:00:59]} Qa7 {[%emt 0:03:14]} 36. Rxa2 {[%emt 0:00:16]} Rxa2 {[%emt 0:00:05]} 37. Rb2 {[%emt 0:02:14] [#]} (37. Kh1 {was called for.}) 37... Nb5 $1 {[%emt 0:00:41]} 38. Rb3 $2 {[%emt 0:00:06] [#]} (38. Rxa2 Qxa2 39. Bf1 Nxc3 40. Bd3) 38... Nxc3 $1 {[%emt 0:01:09][%mdl 512] Black is clearly winning.} 39. Rxc3 {[%emt 0:10:12]} Bxd4+ {[%emt 0:00:13]} 40. Nxd4 {[%emt 0:01:20]} Ra1 $1 {[%emt 0:00:05] Weighted Error Value: White=0.31/Black=0.04 (flawless) .  Mistake:       	White=3     	Black=1      Inaccurate:     	White=5     	---        OK:         	White=7     	Black=17     Best:        	White=1     	Black=2      Strong:       	---       	Black=1      Brilliant:      	---       	Black=1} (40... Qxd4+ 41. Qe3 Qxb4 42. Rc5 $11) 0-1

[Event "45th FIDE Olympiad 2024"]
[Site "Budapest"]
[Date "2024.09.14"]
[Round "4.11"]
[White "Gontcharov, Dimitri"]
[Black "Heron, Andrew"]
[Result "0-1"]
[ECO "B50"]
[WhiteElo "1653"]
[BlackElo "2026"]
[PlyCount "70"]
[EventDate "2024.09.05"]
[EventType "team-tourn"]
[EventCountry "HUN"]
[WhiteTeam "Bermuda"]
[BlackTeam "Liechtenstein"]
[WhiteTeamCountry "BER"]
[BlackTeamCountry "LIE"]
[TimeControl "40/5400+30:1800+30"]

1. e4 c5 2. Nf3 d6 3. Nc3 Nf6 4. e5 dxe5 5. Nxe5 e6 6. Bb5+ Nbd7 7. d4 Bd6 8. Nc4 Be7 9. dxc5 Bxc5 10. Nd6+ Bxd6 11. Qxd6 a6 12. Be2 Qb6 13. Qg3 h5 14. h3 h4 15. Qe3 Qxe3 16. Bxe3 Ne5 17. Bd4 Nc6 18. Bxf6 gxf6 19. O-O-O Bd7 20. Ne4 Ke7 21. Nc5 Bc8 22. Bf3 Rb8 23. Nxa6 Ra8 24. Nc7 Rxa2 25. Kb1 Ra5 26. Rhe1 Ne5 27. Be2 Bd7 28. b4 Ra4 29. Rd4 Nc6 30. Rf4 Rc8 31. Nd5+ exd5 32. Bb5+ Ne5 33. Bxa4 Bxa4 34. Rxh4 Bxc2+ 35. Kb2 Kd6 {0-} 0-1

[Event "45th FIDE Olympiad 2024"]
[Site "Budapest"]
[Date "2024.09.14"]
[Round "4.12"]
[White "Vidit, Santosh Gujrathi"]
[Black "Ivic, Velimir"]
[Result "1-0"]
[ECO "D16"]
[WhiteElo "2720"]
[BlackElo "2599"]
[Annotator "RC"]
[PlyCount "163"]
[EventDate "2024.09.05"]
[EventType "team-tourn"]
[EventCountry "HUN"]
[SourceTitle "playchess.com"]
[Source "ChessBase"]
[SourceQuality "1"]
[WhiteTeam "India"]
[BlackTeam "Serbia"]
[WhiteTeamCountry "IND"]
[BlackTeamCountry "SRB"]
[TimeControl "40/5400+30:1800+30"]

1. d4 {[%emt 0:00:43]} d5 {[%emt 0:00:25]} 2. c4 {[%emt 0:00:20]} c6 {[%emt 0:00:32]} 3. Nf3 {[%emt 0:00:57]} Nf6 {[%emt 0:00:30]} 4. Nc3 {[%emt 0:00:42]} dxc4 {[%emt 0:01:37]} 5. a4 {[%emt 0:00:14]} e6 {[%emt 0:00:35]} 6. e3 {[%emt 0:00:16]} c5 {[%emt 0:00:12]} 7. Bxc4 {[%emt 0:00:11]} cxd4 {[%emt 0:00:21]} 8. exd4 {[%emt 0:00:16]} Nc6 {[%emt 0:00:32]} 9. O-O {[%emt 0:01:08]} Be7 {[%emt 0:00:19]} 10. Qe2 {[%emt 0:09:01]} O-O {[%emt 0:01:20]} 11. Rd1 {[%emt 0:00:16]} Nb4 {[%emt 0:01:25]} 12. a5 {[%emt 0:02:49]} Bd7 {[%emt 0:01:44]} 13. Ne5 {[%emt 0:03:35]} Be8 {[%emt 0:02:23]} 14. h4 {[%emt 0:26:48]} Kh8 {[%emt 0:25:29]} 15. h5 {[%emt 0:03:54]} h6 {[%emt 0:01:57]} 16. Bf4 {[%emt 0:04:54]} Nbd5 {[%emt 0:08:49]} 17. Bd2 {[%emt 0:03:06]} a6 {[%emt 0:07:46]} 18. Qf3 {[%emt 0:05:15]} Rc8 {[%emt 0:02:39]} 19. Nxd5 {[%emt 0:04:00]} Nxd5 {[%emt 0:00:49]} 20. Rac1 {[%emt 0:01:07]} Rc7 {[%emt 0:30:00]} 21. Bxd5 {[%emt 0:06:00]} exd5 {[%emt 0:00:25]} 22. Rxc7 {[%emt 0:01:06]} Qxc7 {[%emt 0:00:02]} 23. Rc1 {[%emt 0:01:42]} Qd6 {[%emt 0:00:42]} 24. Qf5 {[%emt 0:07:25]} Kg8 {[%emt 0:06:25]} 25. Rc3 {[%emt 0:01:27]} Qf6 {[%emt 0:03:11]} 26. Qxf6 {[%emt 0:08:44]} Bxf6 {[%emt 0:00:01]} 27. Rc7 {[%emt 0:00:26]} Bxe5 {[%emt 0:00:35]} 28. dxe5 {[%emt 0:00:02]} Bc6 {[%emt 0:00:16]} 29. Bc3 {[%emt 0:00:13]} f6 {[%emt 0:01:32]} 30. exf6 {[%emt 0:01:34]} gxf6 {[%emt 0:00:02]} 31. Re7 {[%emt 0:01:22]} Rf7 {[%emt 0:02:08]} 32. Re6 {[%emt 0:00:06]} d4 {[%emt 0:00:23]} 33. Bxd4 {[%emt 0:00:11]} Rd7 {[%emt 0:00:04]} 34. Bc3 {[%emt 0:00:38]} Rd5 {[%emt 0:01:09]} 35. Rxf6 {[%emt 0:00:17]} Rxh5 {[%emt 0:00:16]} 36. f3 {[%emt 0:00:29]} Rg5 {[%emt 0:01:04]} 37. Kh2 {[%emt 0:06:40]} Rh5+ {[%emt 0:00:42]} 38. Kg3 {[%emt 0:00:16]} Rg5+ {[%emt 0:00:01]} 39. Kf2 {[%emt 0:00:42]} h5 {[%emt 0:00:10]} 40. Rh6 {[%emt 0:00:40]} Kf7 {[%emt 0:01:19]} 41. Kg1 {[%emt 0:12:53]} Rf5 {[%emt 0:05:09]} 42. Kh2 {[%emt 0:01:21]} Rg5 {[%emt 0:01:31]} 43. Rd6 {[%emt 0:01:23]} Rf5 {[%emt 0:04:30]} 44. Kh3 {[%emt 0:01:08]} Rg5 {[%emt 0:01:01]} 45. Rd2 {[%emt 0:03:05]} Rd5 {[%emt 0:03:24]} 46. Re2 {[%emt 0:00:02]} Rd1 {[%emt 0:03:27]} 47. Kh2 {[%emt 0:02:34]} Rd5 {[%emt 0:00:57]} 48. Re4 {[%emt 0:01:35]} Rf5 {[%emt 0:00:30]} 49. Rd4 {[%emt 0:00:11]} Rd5 {[%emt 0:03:17]} 50. Rf4+ {[%emt 0:01:07]} Ke6 {[%emt 0:01:42]} 51. Rf6+ {[%emt 0:01:02]} Ke7 {[%emt 0:00:13]} 52. Rh6 {[%emt 0:01:44]} Kf7 {[%emt 0:01:01]} 53. Kh3 {[%emt 0:02:02]} Rg5 {[%emt 0:00:35]} 54. g3 {[%emt 0:02:09]} Rd5 {[%emt 0:04:36]} 55. Kh4 {[%emt 0:00:10]} Rd1 {[%emt 0:01:52]} 56. f4 {[%emt 0:05:12]} Rh1+ {[%emt 0:01:35]} 57. Kg5 {[%emt 0:00:01]} Rh3 {[%emt 0:02:35]} 58. Rh7+ {[%emt 0:00:19]} Ke8 {[%emt 0:01:09]} 59. Be1 {[%emt 0:00:24]} Rh1 {[%emt 0:00:31]} 60. Bb4 {[%emt 0:00:32]} Rh3 {[%emt 0:00:04]} 61. Be1 {[%emt 0:01:14]} Rh1 {[%emt 0:00:10]} 62. Bf2 {[%emt 0:00:19]} Rh2 {[%emt 0:00:20]} 63. Bc5 {[%emt 0:00:52]} Rg2 {[%emt 0:01:27]} 64. Re7+ {[%emt 0:00:20]} Kd8 {[%emt 0:00:08]} 65. Re3 {[%emt 0:00:08]} Rxb2 {[%emt 0:00:44]} 66. Bb6+ {[%emt 0:00:22]} Kd7 {[%emt 0:00:16]} 67. Kxh5 {[%emt 0:00:08]} Kd6 {[%emt 0:00:53]} 68. g4 {[%emt 0:00:31]} Rg2 {[%emt 0:00:26]} 69. f5 {[%emt 0:00:42]} Bd5 {[%emt 0:00:16]} 70. g5 {[%emt 0:01:37]} Rh2+ {[%emt 0:00:39]} 71. Kg6 {[%emt 0:00:06]} Rh8 {[%emt 0:00:04]} 72. f6 {[%emt 0:01:00]} Rg8+ {[%emt 0:00:45]} 73. Kf5 {[%emt 0:00:05]} Bf7 {[%emt 0:00:07]} 74. Re7 {[%emt 0:00:57]} Bg6+ {[%emt 0:00:15]} 75. Kf4 {[%emt 0:00:02]} Rc8 {[%emt 0:00:45]} 76. Rg7 {[%emt 0:00:11]} Bb1 {[%emt 0:01:07]} 77. Bc7+ {[%emt 0:01:25]} Kd5 {[%emt 0:00:20]} 78. Rd7+ {[%emt 0:00:29]} Kc6 {[%emt 0:00:11]} 79. Re7 {[%emt 0:00:06]} Bg6 {[%emt 0:00:13]} 80. Ke5 {[%emt 0:00:50]} Rh8 {[%emt 0:01:10]} 81. f7 {[%emt 0:00:19]} Rf8 {[%emt 0:00:43]} 82. Kf6 {[%emt 0:00:10]} 1-0